[Event "Titled Tuesday Blitz March 15 Late 2022"]
[White "Roberson, Peter T"]
[Black "Jarocka, Liwia"]
[WhiteFideId "412384"]
[BlackFideId "21807558"]
[WhiteElo "2346"]
[BlackElo "1896"]
[Result "1-0"]
[Round "02"]
[TimeControl "180+1"]
[Date "2022.03.16"]
[WhiteClock "0:00:35"]
[BlackClock "0:01:05"]

1. e4 {[%clk 0:02:45]}  c6 {[%clk 0:02:58]} 2. c4 {[%clk 0:02:36]}  e5 {[%clk 0:02:57]} 3. Nf3 {[%clk 0:02:36]}  d6 {[%clk 0:02:56]} 4. d4 {[%clk 0:02:37]}  exd4 {[%clk 0:02:56]} 5. Nxd4 {[%clk 0:02:37]}  Nf6 {[%clk 0:02:56]} 6. Nc3 {[%clk 0:02:38]}  Be7 {[%clk 0:02:57]} 7. g3 {[%clk 0:02:34]}  O-O {[%clk 0:02:56]} 8. Bg2 {[%clk 0:02:35]}  Nbd7 {[%clk 0:02:57]} 9. O-O {[%clk 0:02:35]}  a5 {[%clk 0:02:55]} 10. b3 {[%clk 0:02:35]}  Nc5 {[%clk 0:02:55]} 11. Bb2 {[%clk 0:02:34]}  Re8 {[%clk 0:02:56]} 12. Re1 {[%clk 0:02:34]}  Bf8 {[%clk 0:02:57]} 13. h3 {[%clk 0:02:35]}  g6 {[%clk 0:02:57]} 14. Qd2 {[%clk 0:02:35]}  Bg7 {[%clk 0:02:57]} 15. Rad1 {[%clk 0:02:35]}  Qc7 {[%clk 0:02:55]} 16. f4 {[%clk 0:02:33]}  Ne6 {[%clk 0:02:46]} 17. Nxe6 {[%clk 0:02:32]}  Bxe6 {[%clk 0:02:47]} 18. Qxd6 {[%clk 0:02:28]}  Qxd6 {[%clk 0:02:44]} 19. Rxd6 {[%clk 0:02:26]}  Nh5 {[%clk 0:02:37]} 20. Kf2 {[%clk 0:02:22]}  c5 {[%clk 0:02:30]} 21. Na4 {[%clk 0:02:21]}  Bxb2 {[%clk 0:02:14]} 22. Nxb2 {[%clk 0:02:22]}  a4 {[%clk 0:02:05]} 23. Nxa4 {[%clk 0:02:20]}  Bxc4 {[%clk 0:02:04]} 24. e5 {[%clk 0:02:02]}  Bb5 {[%clk 0:02:00]} 25. Bxb7 {[%clk 0:01:57]}  Ra7 {[%clk 0:01:49]} 26. Bc6 {[%clk 0:01:56]}  Bxa4 {[%clk 0:01:49]} 27. Bxa4 {[%clk 0:01:48]}  Rc8 {[%clk 0:01:47]} 28. Re2 {[%clk 0:01:24]}  Ng7 {[%clk 0:01:43]} 29. Bb5 {[%clk 0:01:17]}  Nf5 {[%clk 0:01:42]} 30. Rd7 {[%clk 0:01:15]}  Rxd7 {[%clk 0:01:35]} 31. Bxd7 {[%clk 0:01:16]}  Ra8 {[%clk 0:01:31]} 32. Bxf5 {[%clk 0:01:15]}  gxf5 {[%clk 0:01:28]} 33. Rc2 {[%clk 0:01:15]}  Kf8 {[%clk 0:01:27]} 34. a4 {[%clk 0:01:14]}  Rb8 {[%clk 0:01:24]} 35. Rc3 {[%clk 0:00:54]}  Ke7 {[%clk 0:01:22]} 36. g4 {[%clk 0:00:54]}  fxg4 {[%clk 0:01:21]} 37. hxg4 {[%clk 0:00:55]}  Ke6 {[%clk 0:01:21]} 38. Kf3 {[%clk 0:00:54]}  Kd5 {[%clk 0:01:20]} 39. Rd3+ {[%clk 0:00:52]}  Kc6 {[%clk 0:01:19]} 40. Ke4 {[%clk 0:00:52]}  Rb4+ {[%clk 0:01:18]} 41. Kf5 {[%clk 0:00:52]}  h6 {[%clk 0:01:13]} 42. Rh3 {[%clk 0:00:41]}  Kd5 {[%clk 0:01:10]} 43. a5 {[%clk 0:00:36]}  Rb5 {[%clk 0:01:05]} 44. a6 {[%clk 0:00:37]}  Ra5 {[%clk 0:01:05]} 45. Rxh6 {[%clk 0:00:35]} 1-0


[Site "https://www.chess.com"]

[Event "Titled Tuesday Blitz March 15 Late 2022"]
[White "Rosen, Eric"]
[Black "Matlakov, Maxim"]
[WhiteFideId "2032562"]
[BlackFideId "4168003"]
[WhiteElo "2362"]
[BlackElo "2669"]
[Result "0-1"]
[Round "02"]
[TimeControl "180+1"]
[Date "2022.03.15"]
[WhiteClock "0:00:02"]
[BlackClock "0:00:55"]

1. d4 {[%clk 0:03:00]}  d5 {[%clk 0:02:58]} 2. Bf4 {[%clk 0:03:00]}  Bf5 {[%clk 0:02:55]} 3. e3 {[%clk 0:02:56]}  e6 {[%clk 0:02:55]} 4. Nd2 {[%clk 0:02:54]}  Nf6 {[%clk 0:02:54]} 5. Bd3 {[%clk 0:02:51]}  Bg6 {[%clk 0:02:54]} 6. Ngf3 {[%clk 0:02:51]}  Be7 {[%clk 0:02:51]} 7. Qe2 {[%clk 0:02:46]}  O-O {[%clk 0:02:50]} 8. Bxg6 {[%clk 0:02:46]}  hxg6 {[%clk 0:02:50]} 9. Ne5 {[%clk 0:02:47]}  c5 {[%clk 0:02:49]} 10. c3 {[%clk 0:02:47]}  Nh5 {[%clk 0:02:47]} 11. Bg3 {[%clk 0:02:36]}  Nc6 {[%clk 0:02:46]} 12. f4 {[%clk 0:02:33]}  Qb6 {[%clk 0:02:45]} 13. Ndf3 {[%clk 0:02:31]}  Rad8 {[%clk 0:02:34]} 14. Bf2 {[%clk 0:02:26]}  Nf6 {[%clk 0:02:34]} 15. h4 {[%clk 0:02:21]}  Nxe5 {[%clk 0:02:20]} 16. Nxe5 {[%clk 0:02:20]}  Ne4 {[%clk 0:02:12]} 17. h5 {[%clk 0:02:16]}  g5 {[%clk 0:02:12]} 18. Ng6 {[%clk 0:01:55]}  Bf6 {[%clk 0:01:31]} 19. Nxf8 {[%clk 0:01:51]}  Rxf8 {[%clk 0:01:32]} 20. fxg5 {[%clk 0:01:40]}  Bxg5 {[%clk 0:01:32]} 21. Bh4 {[%clk 0:01:40]}  Bh6 {[%clk 0:01:19]} 22. g4 {[%clk 0:01:39]}  cxd4 {[%clk 0:01:18]} 23. g5 {[%clk 0:01:13]}  d3 {[%clk 0:01:14]} 24. Qg2 {[%clk 0:00:54]}  Qxe3+ {[%clk 0:01:12]} 25. Kd1 {[%clk 0:00:46]}  Bxg5 {[%clk 0:01:11]} 26. Rg1 {[%clk 0:00:26]}  Qe2+ {[%clk 0:01:05]} 27. Qxe2 {[%clk 0:00:26]}  dxe2+ {[%clk 0:01:06]} 28. Kxe2 {[%clk 0:00:25]}  Bxh4 {[%clk 0:01:06]} 29. Rg4 {[%clk 0:00:15]}  Bg5 {[%clk 0:01:05]} 30. Rag1 {[%clk 0:00:12]}  f6 {[%clk 0:01:04]} 31. c4 {[%clk 0:00:10]}  Kh7 {[%clk 0:01:02]} 32. cxd5 {[%clk 0:00:10]}  exd5 {[%clk 0:01:03]} 33. R4g2 {[%clk 0:00:09]}  Re8 {[%clk 0:01:02]} 34. Kd3 {[%clk 0:00:10]}  Kh6 {[%clk 0:01:02]} 35. Kd4 {[%clk 0:00:09]}  Rd8 {[%clk 0:01:01]} 36. Rc2 {[%clk 0:00:07]}  Rd7 {[%clk 0:01:00]} 37. Rc8 {[%clk 0:00:08]}  Kxh5 {[%clk 0:00:59]} 38. Ra8 {[%clk 0:00:06]}  a6 {[%clk 0:00:59]} 39. Rh8+ {[%clk 0:00:05]}  Kg6 {[%clk 0:00:59]} 40. Rf1 {[%clk 0:00:05]}  Nd2 {[%clk 0:00:58]} 41. Rfh1 {[%clk 0:00:04]}  Nf3+ {[%clk 0:00:57]} 42. Kd3 {[%clk 0:00:04]}  d4 {[%clk 0:00:57]} 43. Ke4 {[%clk 0:00:04]}  Ne5 {[%clk 0:00:57]} 44. Rb8 {[%clk 0:00:05]}  d3 {[%clk 0:00:57]} 45. Rd1 {[%clk 0:00:04]}  d2 {[%clk 0:00:57]} 46. a4 {[%clk 0:00:03]}  Nc4 {[%clk 0:00:57]} 47. b3 {[%clk 0:00:02]}  Nb2 {[%clk 0:00:57]} 48. Rxd2 {[%clk 0:00:03]}  Bxd2 {[%clk 0:00:56]} 49. b4 {[%clk 0:00:03]}  Bxb4 {[%clk 0:00:56]} 50. a5 {[%clk 0:00:03]}  Bxa5 {[%clk 0:00:56]} 51. Kf3 {[%clk 0:00:03]}  Nc4 {[%clk 0:00:56]} 52. Kg2 {[%clk 0:00:03]}  Ne5 {[%clk 0:00:56]} 53. Rh8 {[%clk 0:00:03]}  Rd2+ {[%clk 0:00:54]} 54. Kh3 {[%clk 0:00:03]}  Rd3+ {[%clk 0:00:55]} 55. Kh2 {[%clk 0:00:03]}  Bd2 {[%clk 0:00:54]} 56. Rf8 {[%clk 0:00:02]}  Bf4+ {[%clk 0:00:54]} 57. Kg2 {[%clk 0:00:02]}  Rd2+ {[%clk 0:00:55]} 58. Kg1 {[%clk 0:00:02]}  Be3+ {[%clk 0:00:54]} 59. Kf1 {[%clk 0:00:02]}  Rf2+ {[%clk 0:00:54]} 60. Ke1 {[%clk 0:00:02]}  Nd3+ {[%clk 0:00:54]} 61. Kd1 {[%clk 0:00:02]}  Rd2# {[%clk 0:00:55]} 0-1


[Site "https://www.chess.com"]

[Event "Titled Tuesday Blitz March 15 Late 2022"]
[White "Sarkar, Justin"]
[Black "Kokoszczynski, Jan"]
[WhiteFideId "2010011"]
[BlackFideId "1174460"]
[WhiteElo "2038"]
[BlackElo "2163"]
[Result "0-1"]
[Round "02"]
[TimeControl "180+1"]
[Date "2022.03.16"]
[WhiteClock "0:00:02"]
[BlackClock "0:00:52"]

1. d4 {[%clk 0:02:51]}  d5 {[%clk 0:02:57]} 2. c4 {[%clk 0:02:50]}  e6 {[%clk 0:02:57]} 3. Nc3 {[%clk 0:02:48]}  a6 {[%clk 0:02:54]} 4. cxd5 {[%clk 0:02:34]}  exd5 {[%clk 0:02:54]} 5. Nf3 {[%clk 0:02:34]}  c6 {[%clk 0:02:54]} 6. Bg5 {[%clk 0:02:26]}  Be7 {[%clk 0:02:53]} 7. Bxe7 {[%clk 0:02:22]}  Nxe7 {[%clk 0:02:52]} 8. e3 {[%clk 0:02:21]}  O-O {[%clk 0:02:50]} 9. Bd3 {[%clk 0:02:15]}  Bf5 {[%clk 0:02:50]} 10. O-O {[%clk 0:02:12]}  Nd7 {[%clk 0:02:49]} 11. Bxf5 {[%clk 0:02:01]}  Nxf5 {[%clk 0:02:50]} 12. Qd3 {[%clk 0:02:01]}  Nd6 {[%clk 0:02:49]} 13. b3 {[%clk 0:01:50]}  Re8 {[%clk 0:02:49]} 14. Nd2 {[%clk 0:01:43]}  Qh4 {[%clk 0:02:36]} 15. Rac1 {[%clk 0:01:31]}  Re6 {[%clk 0:02:33]} 16. g3 {[%clk 0:01:18]}  Qh3 {[%clk 0:02:26]} 17. Ne2 {[%clk 0:00:46]}  Rh6 {[%clk 0:02:16]} 18. Nf3 {[%clk 0:00:41]}  g5 {[%clk 0:01:39]} 19. Rfd1 {[%clk 0:00:39]}  Ne4 {[%clk 0:01:22]} 20. Nc3 {[%clk 0:00:20]}  Ndf6 {[%clk 0:01:20]} 21. Qf1 {[%clk 0:00:16]}  Qh5 {[%clk 0:01:18]} 22. Qg2 {[%clk 0:00:11]}  Ng4 {[%clk 0:01:17]} 23. Nxe4 {[%clk 0:00:06]}  dxe4 {[%clk 0:01:17]} 24. Ne5 {[%clk 0:00:05]}  Nxh2 {[%clk 0:01:11]} 25. Qxe4 {[%clk 0:00:04]}  Re8 {[%clk 0:01:05]} 26. Qg2 {[%clk 0:00:02]}  g4 {[%clk 0:00:52]} 0-1


[Site "https://www.chess.com"]

[Event "Titled Tuesday Blitz March 15 Late 2022"]
[White "Sinitsina, Anastassia"]
[Black "Golubka, Petro"]
[WhiteFideId "4504640"]
[BlackFideId "14114224"]
[WhiteElo "2144"]
[BlackElo "2346"]
[Result "0-1"]
[Round "02"]
[TimeControl "180+1"]
[Date "2022.03.16"]
[WhiteClock "0:00:01"]
[BlackClock "0:00:05"]

1. g3 {[%clk 0:02:55]}  g6 {[%clk 0:02:58]} 2. Nf3 {[%clk 0:02:55]}  Nf6 {[%clk 0:02:58]} 3. Bg2 {[%clk 0:02:55]}  Bg7 {[%clk 0:02:58]} 4. O-O {[%clk 0:02:55]}  O-O {[%clk 0:02:59]} 5. d4 {[%clk 0:02:56]}  d5 {[%clk 0:02:59]} 6. c4 {[%clk 0:02:55]}  dxc4 {[%clk 0:03:00]} 7. Qc2 {[%clk 0:02:55]}  Nc6 {[%clk 0:03:00]} 8. Qxc4 {[%clk 0:02:51]}  Be6 {[%clk 0:03:00]} 9. Qa4 {[%clk 0:02:40]}  Bd5 {[%clk 0:03:00]} 10. Rd1 {[%clk 0:02:37]}  a6 {[%clk 0:02:38]} 11. Nc3 {[%clk 0:01:48]}  b5 {[%clk 0:02:35]} 12. Qc2 {[%clk 0:01:46]}  Bxf3 {[%clk 0:02:34]} 13. Bxf3 {[%clk 0:01:36]}  Nxd4 {[%clk 0:02:34]} 14. Rxd4 {[%clk 0:01:31]}  Qxd4 {[%clk 0:02:34]} 15. Bxa8 {[%clk 0:01:31]}  Rxa8 {[%clk 0:02:33]} 16. Be3 {[%clk 0:01:31]}  Qc4 {[%clk 0:02:26]} 17. b3 {[%clk 0:01:24]}  Qe6 {[%clk 0:02:18]} 18. Rd1 {[%clk 0:01:22]}  h5 {[%clk 0:02:10]} 19. h4 {[%clk 0:01:18]}  c6 {[%clk 0:01:57]} 20. Kg2 {[%clk 0:01:08]}  Ng4 {[%clk 0:01:42]} 21. Bd4 {[%clk 0:01:06]}  Rd8 {[%clk 0:01:31]} 22. Bxg7 {[%clk 0:01:04]}  Rxd1 {[%clk 0:01:30]} 23. Qxd1 {[%clk 0:01:01]}  Kxg7 {[%clk 0:01:30]} 24. Qd4+ {[%clk 0:01:01]}  Qf6 {[%clk 0:01:27]} 25. e3 {[%clk 0:00:54]}  Qxd4 {[%clk 0:01:20]} 26. exd4 {[%clk 0:00:54]}  Nf6 {[%clk 0:01:21]} 27. Kf3 {[%clk 0:00:53]}  Kf8 {[%clk 0:01:19]} 28. Ke2 {[%clk 0:00:47]}  Ke8 {[%clk 0:01:17]} 29. Kd3 {[%clk 0:00:47]}  Kd7 {[%clk 0:01:17]} 30. Ne2 {[%clk 0:00:46]}  Nd5 {[%clk 0:01:15]} 31. a3 {[%clk 0:00:45]}  a5 {[%clk 0:01:15]} 32. Ng1 {[%clk 0:00:44]}  Kd6 {[%clk 0:01:11]} 33. Nf3 {[%clk 0:00:44]}  f6 {[%clk 0:01:12]} 34. Nd2 {[%clk 0:00:42]}  Nc7 {[%clk 0:01:06]} 35. Ne4+ {[%clk 0:00:42]}  Kd5 {[%clk 0:01:06]} 36. Nc3+ {[%clk 0:00:42]}  Ke6 {[%clk 0:01:06]} 37. Ne4 {[%clk 0:00:41]}  Na6 {[%clk 0:01:06]} 38. Nc3 {[%clk 0:00:38]}  Kd6 {[%clk 0:01:03]} 39. Ne4+ {[%clk 0:00:37]}  Kc7 {[%clk 0:01:03]} 40. Nc3 {[%clk 0:00:37]}  b4 {[%clk 0:00:59]} 41. axb4 {[%clk 0:00:34]}  Nxb4+ {[%clk 0:01:00]} 42. Kc4 {[%clk 0:00:34]}  Kd7 {[%clk 0:00:58]} 43. Ne2 {[%clk 0:00:29]}  Nd5 {[%clk 0:00:57]} 44. Kc5 {[%clk 0:00:29]}  e6 {[%clk 0:00:53]} 45. Nc1 {[%clk 0:00:26]}  Nc3 {[%clk 0:00:51]} 46. Nd3 {[%clk 0:00:23]}  Ne4+ {[%clk 0:00:48]} 47. Kb6 {[%clk 0:00:23]}  Nd2 {[%clk 0:00:45]} 48. Nc5+ {[%clk 0:00:21]}  Kd6 {[%clk 0:00:46]} 49. Kxa5 {[%clk 0:00:21]}  Kd5 {[%clk 0:00:47]} 50. Kb6 {[%clk 0:00:21]}  g5 {[%clk 0:00:44]} 51. Nd7 {[%clk 0:00:18]}  Ne4 {[%clk 0:00:39]} 52. f3 {[%clk 0:00:18]}  Nxg3 {[%clk 0:00:39]} 53. Nxf6+ {[%clk 0:00:18]}  Kxd4 {[%clk 0:00:40]} 54. hxg5 {[%clk 0:00:17]}  h4 {[%clk 0:00:41]} 55. g6 {[%clk 0:00:17]}  Nf5 {[%clk 0:00:41]} 56. Kxc6 {[%clk 0:00:16]}  h3 {[%clk 0:00:40]} 57. Ng4 {[%clk 0:00:16]}  e5 {[%clk 0:00:34]} 58. b4 {[%clk 0:00:16]}  e4 {[%clk 0:00:34]} 59. fxe4 {[%clk 0:00:16]}  Kxe4 {[%clk 0:00:35]} 60. b5 {[%clk 0:00:16]}  Kf4 {[%clk 0:00:36]} 61. b6 {[%clk 0:00:16]}  Kxg4 {[%clk 0:00:36]} 62. b7 {[%clk 0:00:17]}  h2 {[%clk 0:00:36]} 63. b8=Q {[%clk 0:00:16]}  h1=Q+ {[%clk 0:00:37]} 64. Kd7 {[%clk 0:00:14]}  Qd5+ {[%clk 0:00:35]} 65. Kc7 {[%clk 0:00:13]}  Nd4 {[%clk 0:00:24]} 66. Qc8+ {[%clk 0:00:12]}  Ne6+ {[%clk 0:00:23]} 67. Kb8 {[%clk 0:00:10]}  Kg5 {[%clk 0:00:21]} 68. g7 {[%clk 0:00:08]}  Nxg7 {[%clk 0:00:20]} 69. Qc7 {[%clk 0:00:07]}  Ne6 {[%clk 0:00:20]} 70. Qe7+ {[%clk 0:00:07]}  Kf5 {[%clk 0:00:18]} 71. Qf7+ {[%clk 0:00:07]}  Ke4 {[%clk 0:00:17]} 72. Qg6+ {[%clk 0:00:07]}  Kd4 {[%clk 0:00:17]} 73. Qg4+ {[%clk 0:00:06]}  Kc5 {[%clk 0:00:15]} 74. Qg1+ {[%clk 0:00:06]}  Nd4 {[%clk 0:00:14]} 75. Qc1+ {[%clk 0:00:05]}  Kb5 {[%clk 0:00:12]} 76. Qb2+ {[%clk 0:00:04]}  Nb3 {[%clk 0:00:12]} 77. Qe2+ {[%clk 0:00:04]}  Kb6 {[%clk 0:00:11]} 78. Qe3+ {[%clk 0:00:04]}  Nc5 {[%clk 0:00:11]} 79. Qh6+ {[%clk 0:00:02]}  Kb5 {[%clk 0:00:09]} 80. Qg6 {[%clk 0:00:01]}  Na6+ {[%clk 0:00:09]} 81. Kc8 {[%clk 0:00:01]}  Qa8+ {[%clk 0:00:07]} 82. Kd7 {[%clk 0:00:01]}  Nc5+ {[%clk 0:00:06]} 83. Kc7 {[%clk 0:00:01]}  Qb7+ {[%clk 0:00:06]} 84. Kd8 {[%clk 0:00:01]}  Qd7# {[%clk 0:00:05]} 0-1


[Site "https://www.chess.com"]

[Event "Titled Tuesday Blitz March 15 Late 2022"]
[White "Sochacki, Christophe"]
[Black "Zhigalko, Sergei"]
[WhiteFideId "662569"]
[BlackFideId "13502956"]
[WhiteElo "2480"]
[BlackElo "2662"]
[Result "0-1"]
[Round "02"]
[TimeControl "180+1"]
[Date "2022.03.16"]
[WhiteClock "0:00:06"]
[BlackClock "0:01:25"]

1. e4 {[%clk 0:02:43]}  c5 {[%clk 0:02:58]} 2. Nf3 {[%clk 0:02:43]}  Nc6 {[%clk 0:02:59]} 3. b4 {[%clk 0:02:41]}  Nxb4 {[%clk 0:02:57]} 4. c3 {[%clk 0:02:41]}  Nc6 {[%clk 0:02:57]} 5. d4 {[%clk 0:02:42]}  d5 {[%clk 0:02:57]} 6. exd5 {[%clk 0:02:18]}  Qxd5 {[%clk 0:02:56]} 7. Be3 {[%clk 0:02:16]}  cxd4 {[%clk 0:02:53]} 8. cxd4 {[%clk 0:02:16]}  e6 {[%clk 0:02:53]} 9. Nbd2 {[%clk 0:02:09]}  Nf6 {[%clk 0:02:52]} 10. Bc4 {[%clk 0:02:09]}  Qd8 {[%clk 0:02:49]} 11. O-O {[%clk 0:02:06]}  Be7 {[%clk 0:02:48]} 12. Ne5 {[%clk 0:02:00]}  O-O {[%clk 0:02:44]} 13. Nxc6 {[%clk 0:01:58]}  bxc6 {[%clk 0:02:45]} 14. Rc1 {[%clk 0:01:55]}  Nd5 {[%clk 0:02:25]} 15. Bd3 {[%clk 0:01:52]}  Rb8 {[%clk 0:02:15]} 16. Rxc6 {[%clk 0:01:39]}  Nb4 {[%clk 0:02:14]} 17. Bxh7+ {[%clk 0:01:01]}  Kxh7 {[%clk 0:02:11]} 18. Qh5+ {[%clk 0:01:02]}  Kg8 {[%clk 0:02:10]} 19. Rcc1 {[%clk 0:00:43]}  Qd5 {[%clk 0:02:07]} 20. Qh3 {[%clk 0:00:27]}  Ba6 {[%clk 0:01:45]} 21. Rfd1 {[%clk 0:00:21]}  Be2 {[%clk 0:01:45]} 22. Re1 {[%clk 0:00:17]}  Nd3 {[%clk 0:01:45]} 23. Rc7 {[%clk 0:00:18]}  Bd6 {[%clk 0:01:30]} 24. Rxe2 {[%clk 0:00:14]}  Bxc7 {[%clk 0:01:30]} 25. Qg4 {[%clk 0:00:06]}  f5 {[%clk 0:01:26]} 26. Qg6 {[%clk 0:00:05]}  Rf6 {[%clk 0:01:25]} 27. Qg5 {[%clk 0:00:06]} 0-1


[Site "https://www.chess.com"]

[Event "Titled Tuesday Blitz March 15 Late 2022"]
[White "Spitzl, Vinzent"]
[Black "Burke, Paul"]
[WhiteFideId "12901253"]
[BlackFideId "2605767"]
[WhiteElo "2160"]
[BlackElo "1892"]
[Result "1-0"]
[Round "02"]
[TimeControl "180+1"]
[Date "2022.03.16"]
[WhiteClock "0:00:17"]
[BlackClock "0:00:04"]

1. e4 {[%clk 0:02:59]}  e5 {[%clk 0:02:58]} 2. Nf3 {[%clk 0:02:48]}  Nc6 {[%clk 0:02:58]} 3. Bc4 {[%clk 0:02:47]}  Be7 {[%clk 0:02:57]} 4. c3 {[%clk 0:02:43]}  Nf6 {[%clk 0:02:57]} 5. O-O {[%clk 0:02:42]}  Nxe4 {[%clk 0:02:56]} 6. Re1 {[%clk 0:02:26]}  d5 {[%clk 0:02:55]} 7. Bb5 {[%clk 0:02:22]}  O-O {[%clk 0:02:52]} 8. d3 {[%clk 0:02:18]}  Ng5 {[%clk 0:02:17]} 9. Bxc6 {[%clk 0:02:12]}  Nxf3+ {[%clk 0:02:15]} 10. Qxf3 {[%clk 0:02:11]}  bxc6 {[%clk 0:02:15]} 11. Rxe5 {[%clk 0:02:08]}  Bd6 {[%clk 0:02:15]} 12. Re1 {[%clk 0:02:06]}  Be6 {[%clk 0:02:15]} 13. Bf4 {[%clk 0:01:59]}  Qd7 {[%clk 0:02:15]} 14. h3 {[%clk 0:01:57]}  Rae8 {[%clk 0:02:07]} 15. Nd2 {[%clk 0:01:56]}  c5 {[%clk 0:02:03]} 16. Re2 {[%clk 0:01:41]}  c6 {[%clk 0:02:01]} 17. Rae1 {[%clk 0:01:40]}  Bxf4 {[%clk 0:02:01]} 18. Qxf4 {[%clk 0:01:40]}  Qb7 {[%clk 0:01:36]} 19. Nf3 {[%clk 0:01:32]}  Qa6 {[%clk 0:01:30]} 20. Ne5 {[%clk 0:01:21]}  Qxa2 {[%clk 0:01:24]} 21. Nxc6 {[%clk 0:01:19]}  Qa6 {[%clk 0:01:19]} 22. Ne5 {[%clk 0:01:17]}  Qb7 {[%clk 0:01:06]} 23. h4 {[%clk 0:01:01]}  Qc7 {[%clk 0:01:02]} 24. h5 {[%clk 0:00:55]}  f6 {[%clk 0:00:56]} 25. Ng6 {[%clk 0:00:54]}  Qxf4 {[%clk 0:00:49]} 26. Nxf4 {[%clk 0:00:55]}  Bf7 {[%clk 0:00:49]} 27. Rxe8 {[%clk 0:00:53]}  Rxe8 {[%clk 0:00:48]} 28. Rxe8+ {[%clk 0:00:52]}  Bxe8 {[%clk 0:00:47]} 29. Nxd5 {[%clk 0:00:52]}  Kf7 {[%clk 0:00:47]} 30. Nf4 {[%clk 0:00:46]}  g5 {[%clk 0:00:43]} 31. hxg6+ {[%clk 0:00:46]}  hxg6 {[%clk 0:00:43]} 32. Kf1 {[%clk 0:00:45]}  g5 {[%clk 0:00:43]} 33. Nd5 {[%clk 0:00:45]}  Bc6 {[%clk 0:00:39]} 34. Ne3 {[%clk 0:00:44]}  Ke6 {[%clk 0:00:38]} 35. g3 {[%clk 0:00:40]}  f5 {[%clk 0:00:36]} 36. f4 {[%clk 0:00:40]}  gxf4 {[%clk 0:00:33]} 37. gxf4 {[%clk 0:00:41]}  Bb5 {[%clk 0:00:25]} 38. Ke2 {[%clk 0:00:34]}  a5 {[%clk 0:00:24]} 39. Kd2 {[%clk 0:00:33]}  a4 {[%clk 0:00:23]} 40. d4 {[%clk 0:00:27]}  cxd4 {[%clk 0:00:19]} 41. cxd4 {[%clk 0:00:26]}  Bc6 {[%clk 0:00:13]} 42. Kc3 {[%clk 0:00:25]}  Bb5 {[%clk 0:00:09]} 43. Kb4 {[%clk 0:00:24]}  Be8 {[%clk 0:00:09]} 44. Kc5 {[%clk 0:00:23]}  Kf6 {[%clk 0:00:06]} 45. d5 {[%clk 0:00:21]}  Bd7 {[%clk 0:00:06]} 46. Kd6 {[%clk 0:00:21]}  Bb5 {[%clk 0:00:05]} 47. Kc7 {[%clk 0:00:18]}  Ke7 {[%clk 0:00:04]} 48. Nxf5+ {[%clk 0:00:17]}  Kf6 {[%clk 0:00:04]} 49. Nd4 {[%clk 0:00:17]} 1-0


[Site "https://www.chess.com"]

[Event "Titled Tuesday Blitz March 15 Late 2022"]
[White "Szalay, Karoly"]
[Black "Levin, Anthony"]
[WhiteFideId "2600544"]
[BlackFideId "30940680"]
[WhiteElo "2455"]
[BlackElo "1894"]
[Result "1-0"]
[Round "02"]
[TimeControl "180+1"]
[Date "2022.03.16"]
[WhiteClock "0:01:29"]
[BlackClock "0:00:01"]

1. e4 {[%clk 0:02:48]}  c5 {[%clk 0:02:59]} 2. Nf3 {[%clk 0:02:48]}  d6 {[%clk 0:02:59]} 3. d4 {[%clk 0:02:43]}  cxd4 {[%clk 0:03:00]} 4. Nxd4 {[%clk 0:02:44]}  Nf6 {[%clk 0:03:01]} 5. Nc3 {[%clk 0:02:30]}  a6 {[%clk 0:03:01]} 6. Bg5 {[%clk 0:02:30]}  Nbd7 {[%clk 0:03:00]} 7. f3 {[%clk 0:02:29]}  h6 {[%clk 0:02:58]} 8. Be3 {[%clk 0:02:29]}  g6 {[%clk 0:02:31]} 9. Qd2 {[%clk 0:02:28]}  Bg7 {[%clk 0:02:31]} 10. O-O-O {[%clk 0:02:28]}  b5 {[%clk 0:02:27]} 11. g4 {[%clk 0:02:27]}  Bb7 {[%clk 0:02:26]} 12. h4 {[%clk 0:02:26]}  Rc8 {[%clk 0:02:24]} 13. Bd3 {[%clk 0:02:25]}  Nc5 {[%clk 0:01:51]} 14. g5 {[%clk 0:02:22]}  hxg5 {[%clk 0:01:48]} 15. hxg5 {[%clk 0:02:21]}  Nh5 {[%clk 0:01:44]} 16. Kb1 {[%clk 0:02:17]}  O-O {[%clk 0:01:16]} 17. Nce2 {[%clk 0:02:09]}  d5 {[%clk 0:01:03]} 18. e5 {[%clk 0:01:51]}  Bxe5 {[%clk 0:00:52]} 19. f4 {[%clk 0:01:50]}  Bg7 {[%clk 0:00:45]} 20. f5 {[%clk 0:01:46]}  e5 {[%clk 0:00:15]} 21. Rxh5 {[%clk 0:01:39]}  gxh5 {[%clk 0:00:10]} 22. f6 {[%clk 0:01:40]}  exd4 {[%clk 0:00:10]} 23. Nxd4 {[%clk 0:01:37]}  Re8 {[%clk 0:00:08]} 24. Bf5 {[%clk 0:01:30]}  Ne4 {[%clk 0:00:08]} 25. Qh2 {[%clk 0:01:30]}  Rc4 {[%clk 0:00:02]} 26. Qxh5 {[%clk 0:01:28]}  Bc6 {[%clk 0:00:01]} 27. Qh7+ {[%clk 0:01:28]}  Kf8 {[%clk 0:00:01]} 28. Qxg7# {[%clk 0:01:29]} 1-0


[Site "https://www.chess.com"]

[Event "Titled Tuesday Blitz March 15 Late 2022"]
[White "Taichman, Ori"]
[Black "Chigaev, Maksim"]
[WhiteFideId "2804069"]
[BlackFideId "4108116"]
[WhiteElo "2227"]
[BlackElo "2502"]
[Result "0-1"]
[Round "02"]
[TimeControl "180+1"]
[Date "2022.03.15"]
[WhiteClock "0:00:16"]
[BlackClock "0:00:35"]

1. e4 {[%clk 0:03:00]}  c5 {[%clk 0:03:00]} 2. b3 {[%clk 0:02:58]}  g6 {[%clk 0:02:57]} 3. Bb2 {[%clk 0:02:57]}  Nf6 {[%clk 0:02:58]} 4. e5 {[%clk 0:02:54]}  Nd5 {[%clk 0:02:58]} 5. g3 {[%clk 0:02:55]}  Bg7 {[%clk 0:02:57]} 6. Bg2 {[%clk 0:02:56]}  Nc7 {[%clk 0:02:54]} 7. d4 {[%clk 0:02:45]}  cxd4 {[%clk 0:02:53]} 8. Qxd4 {[%clk 0:02:43]}  Nc6 {[%clk 0:02:53]} 9. Qe3 {[%clk 0:02:28]}  d6 {[%clk 0:02:38]} 10. Nf3 {[%clk 0:02:26]}  O-O {[%clk 0:02:33]} 11. h4 {[%clk 0:02:16]}  dxe5 {[%clk 0:02:23]} 12. h5 {[%clk 0:01:49]}  Nd5 {[%clk 0:02:23]} 13. Qe4 {[%clk 0:01:49]}  Bf5 {[%clk 0:01:59]} 14. Qh4 {[%clk 0:01:48]}  Bf6 {[%clk 0:01:44]} 15. Qh2 {[%clk 0:01:17]}  g5 {[%clk 0:01:36]} 16. g4 {[%clk 0:01:15]}  e4 {[%clk 0:01:13]} 17. Ne5 {[%clk 0:00:54]}  Nxe5 {[%clk 0:00:46]} 18. Bxe5 {[%clk 0:00:55]}  Bxg4 {[%clk 0:00:46]} 19. Bxe4 {[%clk 0:00:50]}  Nf4 {[%clk 0:00:44]} 20. f3 {[%clk 0:00:20]}  Bxe5 {[%clk 0:00:42]} 21. fxg4 {[%clk 0:00:20]}  Qd4 {[%clk 0:00:35]} 22. Nd2 {[%clk 0:00:17]}  Qxa1+ {[%clk 0:00:34]} 23. Kf2 {[%clk 0:00:17]}  Qd4+ {[%clk 0:00:35]} 24. Ke1 {[%clk 0:00:16]}  Nd3+ {[%clk 0:00:35]} 0-1


[Site "https://www.chess.com"]